[Event "Late-Titled-Tuesday-Blitz-January-16-2024"]
[Site "Chess.com"]
[Date "2024.01.16"]
[Round "6"]
[White "only_strong_moves"]
[Black "szachmistrz2500"]
[Result "1-0"]
[WhiteElo "2558"]
[BlackElo "2432"]
[TimeControl "180+1"]
[EndTime "15:02:00 PST"]
[Termination "only_strong_moves won by resignation"]

1. d4 {[%clk 0:02:59.4]} 1... d5 {[%clk 0:02:58.9]} 2. Nc3 {[%clk 0:02:59.9]}
2... Nf6 {[%clk 0:02:54.9]} 3. Bf4 {[%clk 0:03:00.3]} 3... c5 {[%clk 0:02:46.8]}
4. e4 {[%clk 0:02:59.9]} 4... e6 {[%clk 0:02:34.8]} 5. dxc5 {[%clk 0:02:52]}
5... Bxc5 {[%clk 0:02:32.3]} 6. exd5 {[%clk 0:02:52.3]} 6... exd5 {[%clk
0:02:29.3]} 7. Bb5+ {[%clk 0:02:22.8]} 7... Nc6 {[%clk 0:02:26.7]} 8. Qe2+
{[%clk 0:02:19]} 8... Be6 {[%clk 0:02:25.1]} 9. Nf3 {[%clk 0:02:08.5]} 9... O-O
{[%clk 0:02:23]} 10. O-O {[%clk 0:02:07.7]} 10... Bg4 {[%clk 0:02:05]} 11. h3
{[%clk 0:02:01.7]} 11... Nd4 {[%clk 0:02:03.2]} 12. Qd3 {[%clk 0:01:51.4]} 12...
Nxf3+ {[%clk 0:01:54.6]} 13. gxf3 {[%clk 0:01:52.3]} 13... Bxh3 {[%clk 0:01:55]}
14. Rfe1 {[%clk 0:01:52.3]} 14... Qb6 {[%clk 0:01:50.9]} 15. Na4 {[%clk
0:01:19.8]} 15... Bxf2+ {[%clk 0:01:48.3]} 16. Kh2 {[%clk 0:01:20.1]} 16... Qa5
{[%clk 0:01:41.4]} 17. Re2 {[%clk 0:01:18.4]} 17... a6 {[%clk 0:01:34.1]} 18.
Rxf2 {[%clk 0:01:14.2]} 18... axb5 {[%clk 0:01:25.7]} 19. Nc5 {[%clk 0:01:07.1]}
19... Be6 {[%clk 0:01:16.9]} 20. Qd4 {[%clk 0:01:03.3]} 20... Nd7 {[%clk
0:00:58.8]} 21. Rg1 {[%clk 0:00:48.9]} 21... f6 {[%clk 0:00:55.9]} 22. Nxe6
{[%clk 0:00:47.9]} 1-0

[Event "Late-Titled-Tuesday-Blitz-January-16-2024"]
[Site "Chess.com"]
[Date "2024.01.16"]
[Round "6"]
[White "EsmeraldasAnderson03"]
[Black "tarno17"]
[Result "1-0"]
[WhiteElo "2387"]
[BlackElo "2170"]
[TimeControl "180+1"]
[EndTime "15:02:00 PST"]
[Termination "EsmeraldasAnderson03 won on time"]

1. d4 {[%clk 0:03:00.9]} 1... d5 {[%clk 0:02:51]} 2. c4 {[%clk 0:03:01]} 2... e6
{[%clk 0:02:50.3]} 3. Nc3 {[%clk 0:03:00.1]} 3... Nf6 {[%clk 0:02:49.9]} 4. cxd5
{[%clk 0:03:00.8]} 4... exd5 {[%clk 0:02:49.9]} 5. Bg5 {[%clk 0:03:01.5]} 5...
Be7 {[%clk 0:02:50.4]} 6. e3 {[%clk 0:03:01.1]} 6... O-O {[%clk 0:02:50.3]} 7.
Qc2 {[%clk 0:03:01.1]} 7... h6 {[%clk 0:02:50.5]} 8. Bh4 {[%clk 0:03:00.8]} 8...
b6 {[%clk 0:02:49.3]} 9. Bd3 {[%clk 0:02:59.3]} 9... Bb7 {[%clk 0:02:48.9]} 10.
Nf3 {[%clk 0:02:57.8]} 10... Nbd7 {[%clk 0:02:49.2]} 11. O-O {[%clk 0:02:56.7]}
11... Rc8 {[%clk 0:02:49.5]} 12. Bf5 {[%clk 0:02:54.3]} 12... c5 {[%clk
0:02:46]} 13. dxc5 {[%clk 0:02:54]} 13... bxc5 {[%clk 0:02:20.3]} 14. Rfd1
{[%clk 0:02:48.5]} 14... Rc6 {[%clk 0:00:51.3]} 15. Bxd7 {[%clk 0:02:37.9]}
15... Qxd7 {[%clk 0:00:36.9]} 16. Nxd5 {[%clk 0:02:36.9]} 16... Nxd5 {[%clk
0:00:21]} 17. Bxe7 {[%clk 0:02:37.1]} 17... Qxe7 {[%clk 0:00:15.3]} 18. Rxd5
{[%clk 0:02:37]} 18... Rg6 {[%clk 0:00:11.5]} 19. Rf5 {[%clk 0:01:39.7]} 19...
Be4 {[%clk 0:00:06.8]} 20. Qxc5 {[%clk 0:01:31.7]} 20... Bxf5 {[%clk 0:00:06.5]}
21. Qxe7 {[%clk 0:01:30.8]} 1-0

[Event "Late-Titled-Tuesday-Blitz-January-16-2024"]
[Site "Chess.com"]
[Date "2024.01.16"]
[Round "6"]
[White "Nick12772"]
[Black "Bala-Afiada"]
[Result "1-0"]
[WhiteElo "2342"]
[BlackElo "2043"]
[TimeControl "180+1"]
[EndTime "15:02:03 PST"]
[Termination "Nick12772 won by resignation"]

1. Nf3 {[%clk 0:03:00.9]} 1... d5 {[%clk 0:02:24.5]} 2. g3 {[%clk 0:03:00.9]}
2... c5 {[%clk 0:02:23.7]} 3. Bg2 {[%clk 0:03:01.2]} 3... Nc6 {[%clk 0:02:24.2]}
4. d4 {[%clk 0:03:01.7]} 4... cxd4 {[%clk 0:02:22.7]} 5. Nxd4 {[%clk 0:03:02.6]}
5... e6 {[%clk 0:02:22.8]} 6. c4 {[%clk 0:03:02.6]} 6... Nf6 {[%clk 0:02:20.9]}
7. Nc3 {[%clk 0:03:02.6]} 7... Nxd4 {[%clk 0:02:10]} 8. Qxd4 {[%clk 0:03:02.3]}
8... Bb4 {[%clk 0:01:55.8]} 9. O-O {[%clk 0:02:53.1]} 9... Bxc3 {[%clk
0:01:55.7]} 10. bxc3 {[%clk 0:02:48.6]} 10... O-O {[%clk 0:01:52]} 11. Bg5
{[%clk 0:02:40.9]} 11... dxc4 {[%clk 0:01:44.6]} 12. Qxc4 {[%clk 0:02:34.3]}
12... h6 {[%clk 0:01:40.4]} 13. Rfd1 {[%clk 0:02:25]} 13... Qe7 {[%clk
0:01:37.4]} 14. Bf4 {[%clk 0:02:08.9]} 14... Rd8 {[%clk 0:01:29.2]} 15. Bc7
{[%clk 0:02:00.1]} 15... Rxd1+ {[%clk 0:01:27.3]} 16. Rxd1 {[%clk 0:02:01]}
16... a6 {[%clk 0:00:23.6]} 17. Bd8 {[%clk 0:01:57.6]} 17... Qa3 {[%clk
0:00:18.8]} 18. Bxf6 {[%clk 0:01:54.1]} 18... gxf6 {[%clk 0:00:19]} 19. Rd8+
{[%clk 0:01:40.9]} 19... Kh7 {[%clk 0:00:16.7]} 20. Rxc8 {[%clk 0:01:36.4]}
20... Qc1+ {[%clk 0:00:16.7]} 21. Bf1 {[%clk 0:01:36.1]} 21... b5 {[%clk
0:00:11.3]} 22. Qc7 {[%clk 0:01:26.8]} 22... Rxc8 {[%clk 0:00:10.3]} 23. Qxc8
{[%clk 0:01:27.7]} 1-0

[Event "Late-Titled-Tuesday-Blitz-January-16-2024"]
[Site "Chess.com"]
[Date "2024.01.16"]
[Round "6"]
[White "sansanathalia"]
[Black "sergeikim"]
[Result "0-1"]
[WhiteElo "2375"]
[BlackElo "2561"]
[TimeControl "180+1"]
[EndTime "15:02:11 PST"]
[Termination "sergeikim won by resignation"]

1. d4 {[%clk 0:02:54.3]} 1... Nf6 {[%clk 0:02:59.2]} 2. Nf3 {[%clk 0:02:54.2]}
2... g6 {[%clk 0:02:59.5]} 3. g3 {[%clk 0:02:54]} 3... Bg7 {[%clk 0:02:58.3]} 4.
Bg2 {[%clk 0:02:54.6]} 4... d6 {[%clk 0:02:58.5]} 5. O-O {[%clk 0:02:53.6]} 5...
O-O {[%clk 0:02:58.4]} 6. c4 {[%clk 0:02:51.8]} 6... Nbd7 {[%clk 0:02:57.6]} 7.
Nc3 {[%clk 0:02:51.5]} 7... e5 {[%clk 0:02:57.7]} 8. dxe5 {[%clk 0:02:50.2]}
8... dxe5 {[%clk 0:02:57.3]} 9. Bg5 {[%clk 0:02:48.9]} 9... Re8 {[%clk
0:02:57.1]} 10. Ne4 {[%clk 0:02:43.7]} 10... h6 {[%clk 0:02:49.2]} 11. Bxf6
{[%clk 0:02:41.5]} 11... Nxf6 {[%clk 0:02:49.2]} 12. Qxd8 {[%clk 0:02:26.1]}
12... Rxd8 {[%clk 0:02:48.7]} 13. Nxf6+ {[%clk 0:02:23.7]} 13... Bxf6 {[%clk
0:02:47.9]} 14. Rad1 {[%clk 0:02:23.6]} 14... Be6 {[%clk 0:02:43.2]} 15. b3
{[%clk 0:02:22.8]} 15... a5 {[%clk 0:02:41.8]} 16. Nd2 {[%clk 0:02:22.3]} 16...
a4 {[%clk 0:02:39.4]} 17. Bxb7 {[%clk 0:02:18.1]} 17... Rab8 {[%clk 0:02:38.9]}
18. Bg2 {[%clk 0:02:16]} 18... Be7 {[%clk 0:02:36.1]} 19. Nf3 {[%clk 0:01:52.8]}
19... axb3 {[%clk 0:02:23.4]} 20. axb3 {[%clk 0:01:49]} 20... Rxb3 {[%clk
0:02:20.3]} 21. Rxd8+ {[%clk 0:01:47.4]} 21... Bxd8 {[%clk 0:02:20.2]} 22. Nxe5
{[%clk 0:01:47.6]} 22... Bf6 {[%clk 0:02:18.4]} 23. Nd3 {[%clk 0:01:30.9]} 23...
Bxc4 {[%clk 0:02:13.6]} 24. Rc1 {[%clk 0:01:27.5]} 24... Rc3 {[%clk 0:02:09]}
25. Rd1 {[%clk 0:01:17.7]} 25... Bb3 {[%clk 0:02:04.1]} 26. Rb1 {[%clk
0:01:14.4]} 26... Kg7 {[%clk 0:01:54.9]} 27. Nc5 {[%clk 0:00:54.8]} 27... Bc2
{[%clk 0:01:52.4]} 28. Rb5 {[%clk 0:00:43.9]} 28... Bf5 {[%clk 0:01:42.3]} 29.
Nd3 {[%clk 0:00:31.4]} 29... Bd4 {[%clk 0:01:33.3]} 30. Rb1 {[%clk 0:00:23.5]}
30... c5 {[%clk 0:01:30.8]} 31. Nf4 {[%clk 0:00:20.7]} 31... Bxb1 {[%clk
0:01:29.4]} 0-1

[Event "Late-Titled-Tuesday-Blitz-January-16-2024"]
[Site "Chess.com"]
[Date "2024.01.16"]
[Round "6"]
[White "olawsson"]
[Black "Akhayan"]
[Result "0-1"]
[WhiteElo "2154"]
[BlackElo "2353"]
[TimeControl "180+1"]
[EndTime "15:02:16 PST"]
[Termination "Akhayan won by resignation"]

1. d4 {[%clk 0:02:50.6]} 1... a6 {[%clk 0:02:59.5]} 2. c4 {[%clk 0:02:48.8]}
2... e6 {[%clk 0:02:59.2]} 3. Nf3 {[%clk 0:02:46.1]} 3... b5 {[%clk 0:02:57.3]}
4. e3 {[%clk 0:02:38.3]} 4... bxc4 {[%clk 0:02:55.5]} 5. Bxc4 {[%clk 0:02:38.3]}
5... Bb7 {[%clk 0:02:55.9]} 6. O-O {[%clk 0:02:32.8]} 6... Nf6 {[%clk
0:02:56.4]} 7. Nbd2 {[%clk 0:02:31.8]} 7... Be7 {[%clk 0:02:56.8]} 8. Qe2 {[%clk
0:02:28]} 8... O-O {[%clk 0:02:57.2]} 9. a3 {[%clk 0:02:18.7]} 9... c5 {[%clk
0:02:57.3]} 10. dxc5 {[%clk 0:02:16.5]} 10... Bxc5 {[%clk 0:02:56.1]} 11. b4
{[%clk 0:02:16.5]} 11... Be7 {[%clk 0:02:55.7]} 12. Bb2 {[%clk 0:02:03.6]} 12...
d6 {[%clk 0:02:55.6]} 13. Rac1 {[%clk 0:01:51.6]} 13... Nbd7 {[%clk 0:02:55.5]}
14. Nb3 {[%clk 0:01:45.7]} 14... Bd5 {[%clk 0:02:42.5]} 15. Na5 {[%clk
0:01:33.1]} 15... Qb6 {[%clk 0:02:21.7]} 16. Bd4 {[%clk 0:00:52.6]} 16... Bxc4
{[%clk 0:02:19]} 17. Qxc4 {[%clk 0:00:43.1]} 17... Qb5 {[%clk 0:02:19]} 18. Qc7
{[%clk 0:00:41.5]} 18... e5 {[%clk 0:02:15.3]} 19. Nc6 {[%clk 0:00:32.9]} 19...
Bd8 {[%clk 0:02:06.9]} 20. Nxd8 {[%clk 0:00:31.8]} 20... Raxd8 {[%clk
0:02:05.8]} 21. Bb2 {[%clk 0:00:32.2]} 21... Nb6 {[%clk 0:01:47.9]} 22. Rfd1
{[%clk 0:00:32.1]} 22... Na4 {[%clk 0:01:44.7]} 23. Ba1 {[%clk 0:00:31.8]} 23...
Rd7 {[%clk 0:01:34.8]} 24. Qc6 {[%clk 0:00:24.2]} 24... Rfd8 {[%clk 0:01:27.6]}
25. h3 {[%clk 0:00:21.1]} 25... h6 {[%clk 0:01:27.2]} 26. Qxb5 {[%clk
0:00:16.8]} 26... axb5 {[%clk 0:01:27.1]} 27. Rc6 {[%clk 0:00:17.7]} 27... Kf8
{[%clk 0:01:23.1]} 28. Nd2 {[%clk 0:00:14.8]} 28... Ke7 {[%clk 0:01:22.6]} 29.
Ne4 {[%clk 0:00:13.8]} 29... Nxe4 {[%clk 0:01:21.8]} 0-1

[Event "Late-Titled-Tuesday-Blitz-January-16-2024"]
[Site "Chess.com"]
[Date "2024.01.16"]
[Round "6"]
[White "adic2020"]
[Black "ArtemDyachuk"]
[Result "1-0"]
[WhiteElo "2457"]
[BlackElo "2632"]
[TimeControl "180+1"]
[EndTime "15:02:17 PST"]
[Termination "adic2020 won by resignation"]

1. e4 {[%clk 0:02:55.8]} 1... c5 {[%clk 0:02:59.3]} 2. b3 {[%clk 0:02:55]} 2...
g6 {[%clk 0:02:55.9]} 3. Bb2 {[%clk 0:02:55.2]} 3... Nf6 {[%clk 0:02:56.1]} 4.
e5 {[%clk 0:02:55.8]} 4... Nd5 {[%clk 0:02:56.6]} 5. Qf3 {[%clk 0:02:56.5]} 5...
Nc7 {[%clk 0:02:53.4]} 6. h4 {[%clk 0:02:55.5]} 6... h5 {[%clk 0:02:50.7]} 7.
Bc4 {[%clk 0:02:54.7]} 7... Ne6 {[%clk 0:02:49.3]} 8. Nh3 {[%clk 0:02:36.6]}
8... Bg7 {[%clk 0:02:47.1]} 9. Ng5 {[%clk 0:02:37.1]} 9... Nxg5 {[%clk
0:02:40.1]} 10. hxg5 {[%clk 0:02:38]} 10... e6 {[%clk 0:02:41]} 11. Na3 {[%clk
0:02:32.5]} 11... d5 {[%clk 0:02:39]} 12. Nb5 {[%clk 0:02:20.7]} 12... dxc4
{[%clk 0:02:31.4]} 13. Nd6+ {[%clk 0:02:19.4]} 13... Kd7 {[%clk 0:02:31.8]} 14.
d4 {[%clk 0:02:06.7]} 14... cxd4 {[%clk 0:02:16.7]} 15. O-O-O {[%clk 0:02:02.1]}
15... Nc6 {[%clk 0:02:02.6]} 16. Bxd4 {[%clk 0:01:50.5]} 16... Qxg5+ {[%clk
0:01:56.2]} 17. Kb1 {[%clk 0:01:47.1]} 17... Kc7 {[%clk 0:01:13.9]} 18. Qxf7+
{[%clk 0:01:22.3]} 18... Qe7 {[%clk 0:01:12.9]} 19. Nb5+ {[%clk 0:01:22.6]}
19... Kb8 {[%clk 0:00:43.5]} 20. Bc5 {[%clk 0:01:18.7]} 20... Bf8 {[%clk
0:00:29.6]} 21. Bd6+ {[%clk 0:01:02.7]} 21... Qxd6 {[%clk 0:00:27.6]} 22. exd6
{[%clk 0:01:00.4]} 1-0

[Event "Late-Titled-Tuesday-Blitz-January-16-2024"]
[Site "Chess.com"]
[Date "2024.01.16"]
[Round "6"]
[White "jinbojinbo"]
[Black "Matrix3x3a"]
[Result "1-0"]
[WhiteElo "2650"]
[BlackElo "2476"]
[TimeControl "180+1"]
[EndTime "15:02:20 PST"]
[Termination "jinbojinbo won by resignation"]

1. Nf3 {[%clk 0:03:00.9]} 1... Nf6 {[%clk 0:02:59.6]} 2. g3 {[%clk 0:03:00.8]}
2... d5 {[%clk 0:03:00.1]} 3. Bg2 {[%clk 0:02:58.3]} 3... c5 {[%clk 0:03:00.1]}
4. O-O {[%clk 0:02:58.5]} 4... g6 {[%clk 0:03:00.2]} 5. d3 {[%clk 0:02:58]} 5...
Bg7 {[%clk 0:03:00.1]} 6. Nbd2 {[%clk 0:02:58.5]} 6... O-O {[%clk 0:03:00.5]} 7.
e4 {[%clk 0:02:58.6]} 7... dxe4 {[%clk 0:02:59.1]} 8. dxe4 {[%clk 0:02:58.3]}
8... Nc6 {[%clk 0:02:59.6]} 9. c3 {[%clk 0:02:56.9]} 9... Qc7 {[%clk 0:02:57.7]}
10. Re1 {[%clk 0:02:57.1]} 10... e5 {[%clk 0:02:44]} 11. Nc4 {[%clk 0:02:55.1]}
11... Rd8 {[%clk 0:02:43.2]} 12. Qc2 {[%clk 0:02:53.1]} 12... Be6 {[%clk
0:02:41.9]} 13. Ne3 {[%clk 0:02:52.6]} 13... Ng4 {[%clk 0:02:40.2]} 14. Ng5
{[%clk 0:02:39.2]} 14... Nxe3 {[%clk 0:02:18.3]} 15. Bxe3 {[%clk 0:02:40.1]}
15... Qe7 {[%clk 0:01:53.4]} 16. Nxe6 {[%clk 0:02:38.8]} 16... fxe6 {[%clk
0:01:53.9]} 17. a4 {[%clk 0:02:38.5]} 17... b6 {[%clk 0:01:48.3]} 18. Red1
{[%clk 0:02:30.6]} 18... Na5 {[%clk 0:01:46.2]} 19. Bf1 {[%clk 0:02:29.8]} 19...
Bf6 {[%clk 0:01:43.8]} 20. h4 {[%clk 0:02:24.6]} 20... Kf7 {[%clk 0:01:37]} 21.
Be2 {[%clk 0:02:19.1]} 21... c4 {[%clk 0:01:31.8]} 22. Rxd8 {[%clk 0:02:11.6]}
22... Rxd8 {[%clk 0:01:31.3]} 23. Rd1 {[%clk 0:02:12.3]} 23... Qc7 {[%clk
0:01:30.5]} 24. h5 {[%clk 0:01:56]} 24... Be7 {[%clk 0:01:29.6]} 25. Kg2 {[%clk
0:01:46.5]} 25... Rxd1 {[%clk 0:01:27.9]} 26. Qxd1 {[%clk 0:01:46]} 26... Bc5
{[%clk 0:01:17.2]} 27. Bxc5 {[%clk 0:01:36.9]} 27... Qxc5 {[%clk 0:01:17.8]} 28.
Qd7+ {[%clk 0:01:37.3]} 28... Qe7 {[%clk 0:01:17.8]} 29. Qc8 {[%clk 0:01:37.4]}
29... Qb7 {[%clk 0:01:09.5]} 30. Qh8 {[%clk 0:01:36]} 30... Qxe4+ {[%clk
0:00:54.5]} 31. Bf3 {[%clk 0:01:36.3]} 31... Qf5 {[%clk 0:00:51.9]} 32. Qxh7+
{[%clk 0:01:35]} 32... Kf6 {[%clk 0:00:51.1]} 33. h6 {[%clk 0:01:31.9]} 33... e4
{[%clk 0:00:50.8]} 34. Be2 {[%clk 0:01:21.8]} 34... e3 {[%clk 0:00:44.4]} 35.
Qg7+ {[%clk 0:01:05.8]} 35... Kg5 {[%clk 0:00:43.7]} 36. f4+ {[%clk 0:01:06]}
1-0

[Event "Late-Titled-Tuesday-Blitz-January-16-2024"]
[Site "Chess.com"]
[Date "2024.01.16"]
[Round "6"]
[White "DishonorOnYourCow"]
[Black "Rutricks"]
[Result "0-1"]
[WhiteElo "2549"]
[BlackElo "2724"]
[TimeControl "180+1"]
[EndTime "15:02:22 PST"]
[Termination "Rutricks won by resignation"]

1. d4 {[%clk 0:03:00.9]} 1... g6 {[%clk 0:03:00.9]} 2. c4 {[%clk 0:03:00.1]}
2... Bg7 {[%clk 0:03:00.6]} 3. Nc3 {[%clk 0:03:00.7]} 3... d6 {[%clk 0:03:00.3]}
4. e4 {[%clk 0:03:00.6]} 4... Nd7 {[%clk 0:03:01.1]} 5. f4 {[%clk 0:03:00.7]}
5... e5 {[%clk 0:03:00.9]} 6. fxe5 {[%clk 0:02:59.7]} 6... dxe5 {[%clk
0:03:01.8]} 7. d5 {[%clk 0:03:00]} 7... Nh6 {[%clk 0:03:01.2]} 8. Nf3 {[%clk
0:02:59.5]} 8... O-O {[%clk 0:03:00.3]} 9. Bd3 {[%clk 0:02:56.1]} 9... Nc5
{[%clk 0:02:53.9]} 10. Bc2 {[%clk 0:02:50.7]} 10... f5 {[%clk 0:02:54.5]} 11.
O-O {[%clk 0:02:36.2]} 11... f4 {[%clk 0:02:54.1]} 12. b4 {[%clk 0:02:35]} 12...
Nd7 {[%clk 0:02:53.8]} 13. c5 {[%clk 0:02:33.6]} 13... g5 {[%clk 0:02:53.1]} 14.
c6 {[%clk 0:02:18.6]} 14... Nb6 {[%clk 0:02:44.7]} 15. Bb3 {[%clk 0:02:08.6]}
15... Kh8 {[%clk 0:02:37.9]} 16. a4 {[%clk 0:01:46.4]} 16... g4 {[%clk
0:02:37.7]} 17. Nd2 {[%clk 0:01:46.2]} 17... bxc6 {[%clk 0:02:36.3]} 18. a5
{[%clk 0:01:41.2]} 18... Nd7 {[%clk 0:02:18.6]} 19. dxc6 {[%clk 0:01:41.1]}
19... Nf6 {[%clk 0:02:18.8]} 20. Nc4 {[%clk 0:01:40.4]} 20... Qe8 {[%clk
0:02:17.5]} 21. Nd5 {[%clk 0:01:34.3]} 21... Qxc6 {[%clk 0:02:03.8]} 22. Nxe5
{[%clk 0:01:33.7]} 22... Qe8 {[%clk 0:01:56.1]} 23. Bb2 {[%clk 0:01:24.2]} 23...
Nxd5 {[%clk 0:01:37.8]} 24. Qxd5 {[%clk 0:01:25.1]} 24... Ba6 {[%clk 0:01:30.5]}
25. Rfd1 {[%clk 0:01:03.7]} 25... f3 {[%clk 0:01:30.4]} 26. gxf3 {[%clk
0:00:33.9]} 26... gxf3 {[%clk 0:01:31.3]} 27. Kf2 {[%clk 0:00:24.1]} 27... Qh5
{[%clk 0:01:27.6]} 28. Rg1 {[%clk 0:00:20.2]} 28... Qxh2+ {[%clk 0:01:24.2]} 29.
Ke3 {[%clk 0:00:18.9]} 29... Qe2+ {[%clk 0:01:24.2]} 30. Kd4 {[%clk 0:00:18.2]}
30... Qxb2+ {[%clk 0:01:24.9]} 31. Kc5 {[%clk 0:00:18.4]} 31... Qxe5 {[%clk
0:01:18.5]} 0-1

[Event "Late-Titled-Tuesday-Blitz-January-16-2024"]
[Site "Chess.com"]
[Date "2024.01.16"]
[Round "6"]
[White "Rikikits"]
[Black "HalfIsCrayfish"]
[Result "1-0"]
[WhiteElo "2834"]
[BlackElo "2610"]
[TimeControl "180+1"]
[EndTime "15:02:27 PST"]
[Termination "Rikikits won by resignation"]

1. d4 {[%clk 0:03:00.9]} 1... Nf6 {[%clk 0:02:58.9]} 2. c4 {[%clk 0:02:59.9]}
2... g6 {[%clk 0:02:59]} 3. Nc3 {[%clk 0:02:59.8]} 3... d5 {[%clk 0:02:59.2]} 4.
Nf3 {[%clk 0:02:57.8]} 4... Bg7 {[%clk 0:02:59]} 5. Qb3 {[%clk 0:02:58.1]} 5...
dxc4 {[%clk 0:02:57.8]} 6. Qxc4 {[%clk 0:02:59]} 6... O-O {[%clk 0:02:56.8]} 7.
e4 {[%clk 0:02:58.9]} 7... Nc6 {[%clk 0:02:57.3]} 8. Be3 {[%clk 0:02:57.5]} 8...
Ng4 {[%clk 0:02:32.4]} 9. O-O-O {[%clk 0:02:55.7]} 9... Nxe3 {[%clk 0:02:32.1]}
10. fxe3 {[%clk 0:02:56.3]} 10... Rb8 {[%clk 0:01:52]} 11. Kb1 {[%clk
0:02:54.8]} 11... Bd7 {[%clk 0:01:46.9]} 12. h4 {[%clk 0:02:47]} 12... b5 {[%clk
0:01:41.5]} 13. Qc5 {[%clk 0:02:47.3]} 13... b4 {[%clk 0:01:36.3]} 14. Nd5
{[%clk 0:02:47.5]} 14... e6 {[%clk 0:01:30.6]} 15. Nf4 {[%clk 0:02:47.7]} 15...
Qe7 {[%clk 0:01:26.4]} 16. Rc1 {[%clk 0:02:46.1]} 16... Qxc5 {[%clk 0:00:38.4]}
17. Rxc5 {[%clk 0:02:47]} 17... Rfd8 {[%clk 0:00:36.9]} 18. e5 {[%clk
0:02:41.4]} 18... Bf8 {[%clk 0:00:30.4]} 19. Rc1 {[%clk 0:02:41.3]} 19... Ne7
{[%clk 0:00:21.2]} 20. g4 {[%clk 0:02:39.7]} 20... Bc6 {[%clk 0:00:21.2]} 21.
Be2 {[%clk 0:02:38.2]} 21... Be4+ {[%clk 0:00:21.4]} 22. Ka1 {[%clk 0:02:37.7]}
22... Nd5 {[%clk 0:00:21.1]} 23. Nxd5 {[%clk 0:02:36.4]} 23... Rxd5 {[%clk
0:00:19.9]} 24. Rhf1 {[%clk 0:02:32.8]} 24... Ra5 {[%clk 0:00:13.8]} 25. b3
{[%clk 0:02:26.5]} 25... c5 {[%clk 0:00:10.6]} 26. Bc4 {[%clk 0:02:22.9]} 26...
cxd4 {[%clk 0:00:08.2]} 27. exd4 {[%clk 0:02:23.8]} 27... Rd8 {[%clk 0:00:07.8]}
28. Ng5 {[%clk 0:02:23.6]} 28... Bg2 {[%clk 0:00:05]} 29. Rxf7 {[%clk
0:02:20.2]} 29... h6 {[%clk 0:00:04.7]} 30. Nxe6 {[%clk 0:02:20.6]} 30... Kxf7
{[%clk 0:00:04.8]} 31. Nxd8+ {[%clk 0:02:20.8]} 31... Ke8 {[%clk 0:00:05.6]} 32.
Ne6 {[%clk 0:02:19.6]} 32... Be7 {[%clk 0:00:03.9]} 33. g5 {[%clk 0:02:16.7]}
33... hxg5 {[%clk 0:00:03.5]} 34. hxg5 {[%clk 0:02:17.6]} 34... Bh3 {[%clk
0:00:03.4]} 35. Kb2 {[%clk 0:02:10.1]} 35... Bf5 {[%clk 0:00:03.4]} 36. Rf1
{[%clk 0:02:04.5]} 36... Bxe6 {[%clk 0:00:02.3]} 37. Bxe6 {[%clk 0:02:04.2]}
37... Bxg5 {[%clk 0:00:02.1]} 38. Bf7+ {[%clk 0:02:03.7]} 38... Ke7 {[%clk
0:00:02.2]} 39. Kc2 {[%clk 0:02:00.3]} 39... Ra6 {[%clk 0:00:01.5]} 40. Bc4
{[%clk 0:01:59.7]} 40... Rc6 {[%clk 0:00:01.5]} 41. Kd3 {[%clk 0:01:59.6]} 41...
Rc8 {[%clk 0:00:01.5]} 42. Rf7+ {[%clk 0:01:58.5]} 42... Ke8 {[%clk 0:00:01.8]}
43. Rxa7 {[%clk 0:01:58.5]} 43... Be7 {[%clk 0:00:02]} 44. d5 {[%clk 0:01:57.6]}
44... g5 {[%clk 0:00:02.5]} 45. d6 {[%clk 0:01:57.5]} 1-0

[Event "Late-Titled-Tuesday-Blitz-January-16-2024"]
[Site "Chess.com"]
[Date "2024.01.16"]
[Round "6"]
[White "argentum049"]
[Black "Viktor_Poddubnyi"]
[Result "1-0"]
[WhiteElo "2496"]
[BlackElo "2267"]
[TimeControl "180+1"]
[EndTime "15:02:30 PST"]
[Termination "argentum049 won by resignation"]

1. e4 {[%clk 0:03:00.9]} 1... g6 {[%clk 0:03:00.2]} 2. d4 {[%clk 0:03:00.7]}
2... Bg7 {[%clk 0:03:00.7]} 3. Nc3 {[%clk 0:03:01.6]} 3... d6 {[%clk 0:03:00.9]}
4. f4 {[%clk 0:03:02.2]} 4... Nf6 {[%clk 0:03:00.1]} 5. Nf3 {[%clk 0:03:02.4]}
5... c5 {[%clk 0:03:00.5]} 6. d5 {[%clk 0:03:01.6]} 6... O-O {[%clk 0:02:57]} 7.
Bd3 {[%clk 0:03:00.9]} 7... e6 {[%clk 0:02:55.2]} 8. dxe6 {[%clk 0:03:00.6]}
8... Bxe6 {[%clk 0:02:54.9]} 9. O-O {[%clk 0:03:01]} 9... Nc6 {[%clk 0:02:54.8]}
10. f5 {[%clk 0:03:00.7]} 10... Bd7 {[%clk 0:02:21]} 11. Bf4 {[%clk 0:02:59.3]}
11... Ne8 {[%clk 0:02:10.6]} 12. Nd5 {[%clk 0:02:55.2]} 12... Nb4 {[%clk
0:01:49.2]} 13. Bg5 {[%clk 0:02:24.8]} 13... f6 {[%clk 0:01:08.1]} 14. Nxb4
{[%clk 0:02:10]} 14... fxg5 {[%clk 0:01:05.1]} 15. Nd5 {[%clk 0:02:08.5]} 15...
g4 {[%clk 0:01:00.1]} 16. Nd2 {[%clk 0:01:52.9]} 16... Nf6 {[%clk 0:00:51.7]}
17. Nxf6+ {[%clk 0:01:50]} 17... Bxf6 {[%clk 0:00:44.6]} 18. Qxg4 {[%clk
0:01:50.5]} 18... Bxb2 {[%clk 0:00:43.1]} 19. Rab1 {[%clk 0:01:50.3]} 19... Bd4+
{[%clk 0:00:42.6]} 20. Kh1 {[%clk 0:01:50.9]} 20... b6 {[%clk 0:00:28.9]} 21.
Nf3 {[%clk 0:01:43.2]} 21... Bg7 {[%clk 0:00:28.7]} 22. Qg3 {[%clk 0:01:42.9]}
22... gxf5 {[%clk 0:00:27.4]} 23. Qxd6 {[%clk 0:01:40.4]} 23... fxe4 {[%clk
0:00:20.1]} 24. Bxe4 {[%clk 0:01:41.3]} 24... Rc8 {[%clk 0:00:19.4]} 25. Qd5+
{[%clk 0:01:17.5]} 25... Kh8 {[%clk 0:00:18.9]} 26. Ng5 {[%clk 0:01:18.1]} 26...
Rxf1+ {[%clk 0:00:15.5]} 27. Rxf1 {[%clk 0:01:19]} 1-0